Cogmind - Beta 17.1 @@@ ROGUE MODE // 2026.09.01 @ 23:07:10 Player: OG DANIEL Result: Self-destructed Performance ------------- Evolutions (1) 500 Regions Visited (2) 400 Robots Destroyed (12) 60 Value Destroyed (283) 283 Prototype IDs (0) 0 Alien Tech Used (0) 0 Bonus (0) 0 TOTAL SCORE: 1243 Bonus ------- None Cogmind --------- Core Integrity 367/400 Matter 280/300 Energy 100/100 System Corruption 0% Temperature Warm (153) Movement Walking (120) Location -9/Materials Parts ------- > --- POWER (1) -------- (None) > --- PROPULSION (4) --- Aluminum Leg Aluminum Leg Aluminum Leg > --- UTILITY (2) ------ Small Storage Unit > --- WEAPON (2) ------- (None) > --- INVENTORY (8) ---- Light Ion Engine Aluminum Leg Small Matter Pod (50) Assault Rifle Light Assault Rifle Light Assault Rifle Peak State ------------ > --- POWER ------------ Light Nuclear Core > --- PROPULSION ------- Aluminum Leg Aluminum Leg Aluminum Leg Aluminum Leg > --- UTILITY ---------- Small Storage Unit > --- WEAPON ----------- Small Laser Particle Gun > --- INVENTORY -------- Light Ion Engine Aluminum Leg Small Matter Pod Assault Rifle Light Assault Rifle Light Assault Rifle [Rating: 11] Favorites ----------- Power Light Ion Engine Engine Light Ion Engine Power Core Light Nuclear Core Propulsion Aluminum Leg Treads Light Treads Leg Aluminum Leg Utility Small Storage Unit Storage Small Storage Unit Weapon Light Assault Rifle Energy Gun Small Laser Ballistic Gun Light Assault Rifle Special Weapon Welding Torch Build | -11 -10 -9 ------- Run | Yrd Mat Mat Slots Evolved 2 | . . 2 Power . | . . . Propulsion 2 | . . 2 Utility . | . . . Weapon . | . . . Parts Attached 19 | 6 11 2 Power 3 | 1 2 . Engine 2 | 1 1 . Core 1 | . 1 . Reactor . | . . . Propulsion 8 | 2 4 2 Treads 2 | 2 . . Leg 6 | . 4 2 Wheel . | . . . Hover . | . . . Flight . | . . . Utility 1 | 1 . . Device . | . . . Storage 1 | 1 . . Processor . | . . . Hackware . | . . . Protection . | . . . Artifact . | . . . Weapon 7 | 2 5 . Energy Gun 3 | . 3 . Energy Cannon . | . . . Ballistic Gun 3 | 2 1 . Ballistic Cannon . | . . . Launcher . | . . . Special Weapon 1 | . 1 . Impact Weapon . | . . . Slashing Weapon . | . . . Piercing Weapon . | . . . Special Melee Weapon . | . . . Unidentified Prototypes . | . . . Parts Lost 8 | . 4 4 Power 2 | . 1 1 Propulsion 2 | . 1 1 Utility . | . . . Weapon 4 | . 2 2 Highest Loss Streak 4 | . 2 4 To Critical Strikes . | . . . Average Backups 6 | 4 7 6 Power . | . . 1 Propulsion 2 | 2 3 1 Utility . | . 1 1 Weapon 2 | . 2 3 Tool/Special . | . . . Unused Backups 6 | . 4 2 Power 1 | . 1 . Propulsion 4 | . 3 1 Utility 1 | . . 1 Weapon . | . . . Tool/Special . | . . . Average Slot Usage (%) 81 | . 81 81 Engine 5 | . 6 . Core 7 | . 7 8 Treads 8 | . 9 . Leg 19 | . 16 41 Storage 13 | . 14 11 Energy Gun 17 | . 17 19 Ballistic Gun 7 | . 8 . Peak Build Rating 11 | 6 9 11 Average Rating 6 | 5 7 9 On Entrance 5 | . 6 9 Avg Prop Armor Cover (%) 13 | . . 13 Naked Turns . | . . . Heaviest Build 14 | 10 14 14 Greatest Support 40 | 40 40 20 Greatest Overweight (x) 1 | . 1 . Average Overweight (x) . | . . . Largest Inventory Capacity 8 | 8 8 8 Average Capacity 7 | 6 8 8 Most Carried 8 | 7 8 7 Average Carried 6 | 4 7 6 Final Capacity 8 | 8 8 8 Final Carried 8 | 7 8 6 Class Distribution -------------------- 50% | Mutant 49% | Scavenger-Mutant Dominant Class ---------------- Scavenger-Mutant | -10/Materials Scavenger-Mutant | -9/Materials Resources | -11 -10 -9 ----------- Run | Yrd Mat Mat Matter Collected 412 | 318 94 . Remotely . | . . . Salvage Created 393 | 85 284 24 Parts 29 | 3 23 3 Haulers Intercepted . | . . . Recyclers Shooed . | . . . Parts Field Recycled . | . . . Retrieved Matter . | . . . Parts Self-Destructed . | . . . Prevented . | . . . Parts Restored . | . . . Kills | -11 -10 -9 ------- Run | Yrd Mat Mat Combat Hostiles Destroyed 9 | . 7 2 Guns 8 | . 6 2 AOE 1 | . 1 . Classes Destroyed 5 | 2 2 1 Worker 1 | 1 . . Builder 1 | . 1 . Recycler 1 | 1 . . Swarmer 2 | . . 2 Grunt 7 | . 7 . Best Kill Streak 3 | 1 3 2 Combat Bots Only 2 | . 2 2 Max Kills in Single Turn 1 | 1 1 1 Gunslinging . | . . . Exploded 1 | . 1 . Melee . | . . . Uniques/NPCs Destroyed . | . . . Combat | -11 -10 -9 -------- Run | Yrd Mat Mat Hostile Shots Fired 92 | . 58 34 Missed 13 | . 12 1 Hits 79 | . 46 33 Melee 4 | . . 4 Projectile 75 | . 46 29 Critical Strikes 1 | . 1 . Damage Taken 1161 | . 771 390 Core 130 | . 97 33 Absorbed by Shields . | . . . Core Remaining (%) 80 | 100 61 . Volleys Fired 53 | 9 34 10 Largest 2 | 2 2 2 Hottest 105 | 40 105 105 Shots Fired 93 | 18 61 14 Gun 89 | 18 57 14 Cannon . | . . . Launcher . | . . . Special 4 | . 4 . Kinetic 40 | 18 22 . Thermal 44 | . 30 14 Explosive . | . . . Electromagnetic 9 | . 9 . Robot Hit Streak 15 | 11 15 7 Robot Miss Streak 2 | 1 2 2 Penetration Max . | . . . Secondary Targets . | . . . Shots Hit Robots 68 | 15 43 10 Core Hits 26 | 4 19 3 Critical Kills . | . . . Critical Parts Destroyed . | . . . Critical Strikes . | . . . Melee Attacks . | . . . Impact . | . . . Slashing . | . . . Piercing . | . . . Sneak Attacks . | . . . Combat Hostiles . | . . . Follow-up Attacks . | . . . Damage Inflicted 739 | 122 494 123 Guns 706 | 122 461 123 Cannons . | . . . Explosions 24 | . 24 . Melee . | . . . Ramming . | . . . Kinetic 262 | 122 140 . Thermal 403 | . 280 123 Explosive . | . . . Electromagnetic 74 | . 74 . Impact . | . . . Slashing . | . . . Piercing . | . . . Highest Corruption . | . . . Average Corruption . | . . . Corruption Purged . | . . . Corruption Blocked . | . . . Overload Shots . | . . . Overflow Damage . | . . . Projectiles . | . . . Explosions . | . . . Melee . | . . . Knockbacks . | . . . Impact . | . . . Kinetic . | . . . Secondary . | . . . Self-Inflicted Damage . | . . . Shots . | . . . Rammed . | . . . Targets Rammed . | . . . Kicked . | . . . Crushed . | . . . Highest Temperature 342 | . 342 178 Average Temperature 109 | . 105 127 Received Heat Transfer 402 | . 336 66 Siege Activations . | . . . Martial Activations . | . . . Shielding Activations . | . . . Robots Disrupted . | . . . Combat Hostiles . | . . . Robots Corrupted . | . . . Combat Hostiles . | . . . Parts Fried . | . . . Impact Corruptions . | . . . Robots Melted . | . . . Combat Hostiles . | . . . Parts Melted 1 | . 1 . Heat Transferred 957 | . 671 286 Parts Sabotaged . | . . . Parts Stolen . | . . . Parts Stripped . | . . . Power Chain Reactions 1 | . 1 . Alert | -11 -10 -9 ------- Run | Yrd Mat Mat Maximum Alert Level . | . . . Low Security (%) 100 | 100 100 100 Level 1 . | . . . Level 2 . | . . . Level 3 . | . . . Level 4 . | . . . Level 5 . | . . . High Security . | . . . Max Security . | . . . Peak Influence 61 | 5 61 56 Initial 16 | . . 16 Average 12 | . 15 20 Influence Increases 244 | 10 184 50 Destroy 0b10 Robot/C 180 | . 140 40 Destroy 0b10 Robot/NC 15 | 10 5 . Destroy Leader 40 | . 30 10 Successful Hack 5 | . 5 . Destroy Structure 4 | . 4 . Influence Decreases 238 | 10 143 85 Entered New Map 25 | . . 25 Time Decay 135 | 10 105 20 Lost Part 78 | . 38 40 Squads Dispatched 2 | . 2 . Investigation 1 | . 1 . Extermination . | . . . Reinforcement 1 | . 1 . Assault . | . . . Garrison . | . . . Intercept . | . . . Searches Triggered . | . . . Construction Impeded . | . . . Haulers Reinforced . | . . . Active Scanning Responses . | . . . Cargo Convoy Interrupts . | . . . Stealth | -11 -10 -9 --------- Run | Yrd Mat Mat Distress Signals 2 | . 2 . Communications Jammed . | . . . Distress Signals . | . . . Times Spotted 19 | . 13 6 Peak Tracking Total 6 | . 4 6 Tactical Retreats . | . . . Traps | -11 -10 -9 ------- Run | Yrd Mat Mat Traps Triggered 1 | . 1 . Indirectly . | . . . Trap Hack Attempts . | . . . Triggered . | . . . Disarmed . | . . . Reprogrammed . | . . . Reused . | . . . Traps Extracted . | . . . Installed . | . . . Triggered . | . . . Machines | -11 -10 -9 ---------- Run | Yrd Mat Mat Machines Disabled . | . . . Max in Single Turn . | . . . Machines Repaired . | . . . Machines Dismantled . | . . . Machines Sabotaged . | . . . Overloaded Fab Kills . | . . . Hacking | -11 -10 -9 --------- Run | Yrd Mat Mat Machines Accessed 1 | . 1 . Terminals 1 | . 1 . Fabricators . | . . . Repair Stations . | . . . Recycling Units . | . . . Scanalyzers . | . . . Garrison Access . | . . . Total Hacks 1 | . 1 . Successful 1 | . 1 . Failed . | . . . Catastrophic . | . . . Database Lockouts . | . . . Manual . | . . . Terminals 1 | . 1 . Fabricators . | . . . Repair Stations . | . . . Recycling Units . | . . . Scanalyzers . | . . . Garrison Access . | . . . Terminal Hacks 1 | . 1 . Zone Layout 1 | . 1 . Fabricator Hacks . | . . . Repair Station Hacks . | . . . Recycling Unit Hacks . | . . . Scanalyzer . | . . . Garrison Access Hacks . | . . . Unauthorized Hacks . | . . . Terminals . | . . . Fabricators . | . . . Repair Stations . | . . . Recycling Units . | . . . Scanalyzers . | . . . Garrison Access . | . . . Data Cores Recovered . | . . . Used . | . . . Hacking Detections . | . . . Full Trace Events . | . . . Feedback Events . | . . . Feedback Blocked . | . . . Robot Schematics Acquired . | . . . Robots Built . | . . . Authchips . | . . . Time . | . . . Total Robot Build Rating . | . . . Part Schematics Acquired . | . . . Parts Built . | . . . Authchips . | . . . Time . | . . . Total Part Build Rating . | . . . Part Studies Acquired . | . . . Parts Repaired . | . . . Time . | . . . Parts Recycled . | . . . Recycled Matter . | . . . Retrieved Matter . | . . . Retrieved Components . | . . . Parts Scanalyzed . | . . . Part Schematics Acquired . | . . . Parts Damaged . | . . . Bothacking | -11 -10 -9 ------------ Run | Yrd Mat Mat Used RIF Installer . | . . . Robots Hacked . | . . . Non-combat . | . . . Combat . | . . . Robot Hacks Applied . | . . . Relay Couplers Released . | . . . Fabnet Peak Effective % . | . . . Robots Rewired . | . . . Allies Hacked . | . . . Hacks Repelled . | . . . Allies | -11 -10 -9 -------- Run | Yrd Mat Mat Total Allies . | . . . Largest Group . | . . . Highest-Rated Group . | . . . Highest-Rated Ally . | . . . Total Orders . | . . . Ally Attacks . | . . . Total Damage . | . . . Kills . | . . . Allies Corrupted . | . . . Allies Melted . | . . . Intel | -11 -10 -9 ------- Run | Yrd Mat Mat Active Infowar (turns) . | . . . Robot Analysis Total . | . . . Derelict Logs Recovered . | . . . Drone Launches . | . . . Drone Recoveries . | . . . Exploration | -11 -10 -9 ------------- Run | Yrd Mat Mat Turns Passed 596 | 161 387 48 Spaces Moved 275 | 82 177 16 Core 8 | 8 . . Treads 127 | 74 53 . Legs 140 | . 124 16 Wheels . | . . . Hover . | . . . Flight . | . . . Fastest Speed 50 | 50 120 120 Average Speed 137 | 149 133 120 Slowest Speed 190 | 160 190 120 Overloaded Moves . | . . . Propulsion Burnouts . | . . . Robots Hopped . | . . . Potential Cave-ins . | . . . Cave-ins Triggered . | . . . Exploration Rate (%) 14 | 4 33 7 Regions Visited 2 Branch Regions . Pre-discovered Areas . | . . . Known Exits Taken . | . . . Unknown Exits Taken 2 | 1 1 . Scrap Searched . | . . . Spaces Dug . | . . . Terrain Destroyed 2 | . 2 . Melee . | . . . Projectile . | . . . AOE 2 | . 2 . Terrain Rammed . | . . . Walls Destroyed . | . . . Machines Disabled . | . . . Actions | -11 -10 -9 --------- Run | Yrd Mat Mat Total 403 | 103 270 30 Wait 36 | . 34 2 Move 273 | 81 176 16 Hop . | . . . Pick Up 14 | 7 7 . Fast Attach 11 | 6 5 . Attach 4 | . 2 2 Detach 1 | . 1 . Swap 4 | . 4 . Drop 7 | . 7 . Fire 53 | 9 34 10 Melee . | . . . Ram . | . . . Kick . | . . . Crush . | . . . Escape Stasis . | . . . Rewire . | . . . Trap . | . . . Miscellaneous . | . . . Route ------- -11/Scrapyard -10/Materials -9/Materials History --------- Turn | Location | Event 94 | -11/Scrapyard | Discovered new exit (range 13) 162 | -11/Scrapyard | Entered Materials 541 | -10/Materials | Discovered new exit (range 8) 549 | -10/Materials | Entered another Materials area 549 | -9/Materials | Evolved 2 slots: Propulsion x2 597 | -9/Materials | Self-destructed Last Messages --------------- 00482_ R-06 Scavenger collects Ion Engine. 00507_ G-34 Mercenary destroyed. 00525_ Dropped Aluminum Leg. 00529_ Acquired Aluminum Leg. 00531_ Dropped Aluminum Leg. 00533_ K-01 Serf collects debris. 00533_ Acquired Aluminum Leg. 00534_ U-05 Engineer lays Concrete. 00536_ K-01 Serf collects debris. 00537_ U-05 Engineer lays Concrete. 00540_ K-01 Serf collects debris. 00541_ EXIT=FOUND PARAMETERS=PROPULSION+2 LOCATION=UNKNOWN GOAL=ESCAPE 00579_ S-10 Pest destroyed. 00584_ Particle Gun destroyed. 00588_ Lgt. Nuclear Core destroyed. 00594_ Aluminum Leg destroyed. 00596_ Sml. Laser destroyed. Map ----- +----------------------------------------------------+ | ????????????????????????????????????? | | ????????????????????????????????????? | | ????????????????????????????????????? | | ????????????????????????????????????? | | ????????????????????????????????????? | | ????????????????????????????????????? | | ????????????????????????????????????? | | ????????????????????????????????????? | | ????????????????????#####???????????? | | ????????????????????# #???????????? | | ????????????????????# #???????????? | | ????????????????????# #???????????? | | ????????????????????# #???????????? | | ????????????????????# #???????????? | | ????????????????????# #???????????? | | ????????????????????# #???????????? | | ????????????????????# ##########??? | | ????????????????????# # #??? | | ????????????????????# # #??? | | ?????????????######## # #??? | | ?????????????# # #??? | | ?????????????# + #??? | | ?????????????# #sg #??? | | ?????????????# # #??? | | ?????????????# # l #??? | | ?????????????# #@%* #??? | | ?????????????# ##g#######??? | | ???????????? %#????????? | | ??????????? #????????? | | ??????????? "#????????? | | ???????????? T#????????? | | ???????????? """ "#????????? | | ????????????? [ """ #????????? | | ??????????????? ???" #????????? | | ??????????????????? ?????????? | | ????????????????????? ??????????? | | ????????????????????? ??????????? | | ???????????????????? ???????????? | | ???????????????????? ???????????? | | ??????????????????????"""???????????? | | ????????????????????????????????????? | | ????????????????????????????????????? | | ????????????????????????????????????? | | ????????????????????????????????????? | | ????????????????????????????????????? | | ????????????????????????????????????? | | ????????????????????????????????????? | | ????????????????????????????????????? | | ????????????????????????????????????? | | ????????????????????????????????????? | +----------------------------------------------------+ Best States ------------- Heat Dissipation 28 Energy Generation 14 Energy Capacity 160 Matter Stores 300 Matter Capacity 300 Sight Range 16 Terrain Scan Density 10 Evasion (%) 55 Recoil Reduction 2 Item Schematics ----------------- None Robot Schematics ------------------ None Fabricated ------------ Nothing Repaired ---------- Nothing Studied --------- None Alien Tech Used ----------------- None Achievements -------------- None Challenges ------------ None Game ------ Seed NetworkedChromaticForcewell Manual? 0 Play Time 00:08:17 Cumulative 44.1 hours Start 2026.09.01 @ 22:58:38 End 2026.09.01 @ 23:07:10 Sessions 2 Manual Loads 0 Difficulty Rogue Special Mode None Game No. 114 Rogue 114 Adventurer 0 Explorer 0 Win Type - Total 0 Types 0/0/0/0/0/0/0/0/0/0 Lore% 10 Gallery% 23 Achievement% 18 Wizard Run 0 Options --------- Layout 1 ASCII 0 Keyboard 0 Movement Numpad Keybinds 0 Fullscreen 1 Font 16/SmallcapsGlow Map View 50x40 Zoom Use 8% Tactical HUD 1 Map Filters NONE Filters NONE Steam SD RUN: e37d35d2-b040-41ee-a12b-ad233c3a242e